[Event "Paris FIDE GP"]
[Site "Elancourt"]
[Date "2013.09.29"]
[Round "7"]
[White "Dominguez Perez, Leinier"]
[Black "Bacrot, Etienne"]
[Result "1/2-1/2"]
[ECO "C67"]
[WhiteElo "2757"]
[BlackElo "2723"]
[Annotator "Ramirez Alvarez,A"]
[PlyCount "62"]
[EventDate "2013.09.22"]
[EventType "tourn"]
[EventRounds "11"]
[EventCountry "FRA"]
[EventCategory "20"]
[SourceTitle "CBM 157"]
[Source "ChessBase"]
[SourceDate "2013.11.12"]
[SourceVersion "1"]
[SourceVersionDate "2013.11.12"]
[SourceQuality "1"]
[TimeControl "40/7200:20/3600:900+30"]
[WhiteClock "2:00:00"]
[BlackClock "2:00:00"]

1. e4 {[%emt 0:00:03]} e5 {[%emt 0:00:06]} 2. Nf3 {[%emt 0:00:14]} Nc6 {
[%emt 0:00:06]} 3. Bb5 {[%emt 0:00:07]} Nf6 {[%emt 0:00:05]} 4. O-O {[%emt 0:
00:47]} Nxe4 {[%emt 0:00:08]} 5. d4 {[%emt 0:00:05]} Nd6 {[%emt 0:00:08]} 6.
Bxc6 {[%emt 0:00:15]} dxc6 {[%emt 0:00:03]} 7. dxe5 {[%emt 0:00:05]} Nf5 {
[%emt 0:00:06]} 8. Qxd8+ {[%emt 0:00:08]} Kxd8 {[%emt 0:00:05]} 9. h3 {[%emt 0:
00:07]} Ke8 {[%emt 0:00:31]} 10. Nc3 {[%emt 0:00:36]} h5 {[%emt 0:00:11]} 11.
Bf4 {[%emt 0:00:57]} Be7 {[%emt 0:01:43]} 12. Rad1 {[%emt 0:00:16]} Be6 {
[%emt 0:01:29]} (12... Nh4 13. Nxh4 Bxh4 14. Ne2 Bd7 15. Rfe1 Rd8 16. Nd4 Bc8
17. c3 Rd5 18. e6 Bf6 19. exf7+ Kxf7 20. Bxc7 g5 21. Nf3 Rxd1 22. Rxd1 Re8 23.
Nd2 b5 24. f3 Bf5 25. Kf2 Re7 26. Bd8 Rd7 27. Bxf6 Bc2 28. Rg1 Rxd2+ 29. Ke3
Rd5 30. Bh8 Kg8 31. c4 bxc4 32. Bc3 Kf7 33. Rc1 Bd3 34. h4 gxh4 35. Rh1 Rg5 36.
Kf2 Rd5 37. Rxh4 Ke6 38. Rh2 a5 39. Kg3 a4 40. a3 Rg5+ 41. Kh4 Rd5 42. Rh1 {
Adams,M (2740)-Andreikin,D (2727) Dortmund 2013 1-0 (64)}) 13. Ng5 {[%emt 0:00:
27]} Rh6 {[%emt 0:03:15]} 14. Rfe1 Bb4 {[%emt 0:05:08]} 15. g4 {[%emt 0:00:50]}
hxg4 {[%emt 0:00:44]} 16. hxg4 {[%emt 0:00:06]} Ne7 {[%emt 0:25:10]} 17. Nxe6 {
[%emt 0:08:33]} Rxe6 {[%emt 0:01:06]} 18. Re3 $146 {[%emt 0:00:10]} (18. Kg2
Bxc3 19. bxc3 Rd8 20. Rb1 b5 21. Kg3 Rd5 22. c4 Rc5 23. Re4 a6 24. Rb3 Ng6 25.
Ra3 f6 26. Rxa6 Nxf4 27. Kxf4 Rexe5 28. Rxe5+ fxe5+ 29. Kf5 Kf7 30. Ra7 g6+ 31.
Kg5 e4+ 32. Kh6 Rxc4 33. Rxc7+ Ke6 34. g5 Rxc2 35. Kxg6 Rxf2 36. Rxc6+ Kd5 37.
Rb6 Kc5 38. Re6 Kd4 39. Rd6+ Kc5 40. Re6 Kd4 41. Rd6+ Kc5 42. Re6 {1/2-1/2 (42)
Karjakin,S (2786)-Grischuk,A (2764) Moscow 2013}) 18... Rg6 {[%emt 0:04:07]}
19. Rg3 {[%emt 0:05:39]} Bxc3 {[%emt 0:04:51] This Berlin defense went in
completely the wrong way for the Cuban. His structure was shattered in the
queenside early on while Black's pieces became active. With his kingside pawn
expanse blocked on the light squares and being saddled with a dark squared
bishop, it was only Black that had any hopes of being better. However Bacrot
seemed to think that White's position was solid enough and forced a repetition
in a position where maybe he could have at least played on for a few more
moves.} 20. bxc3 {[%emt 0:00:17]} Rd8 {[%emt 0:00:23]} 21. Rxd8+ {[%emt 0:49:
19]} Kxd8 {[%emt 0:00:15]} 22. Kg2 {[%emt 0:03:05]} c5 {[%emt 0:08:56]} 23. Bc1
{[%emt 0:04:32]} Ra6 {[%emt 0:11:56]} 24. a3 {[%emt 0:00:29]} Ra4 {[%emt 0:00:
28]} 25. f4 {[%emt 0:03:42]} g6 {[%emt 0:07:24]} 26. Rd3+ {[%emt 0:09:27]} Ke8
{[%emt 0:00:08]} 27. Kf3 {[%emt 0:00:34]} b6 {[%emt 0:05:35]} 28. Rd1 {[%emt 0:
08:24]} Rc4 {[%emt 0:02:07]} 29. Bd2 {[%emt 0:01:50]} Ra4 {[%emt 0:06:50]} 30.
Bc1 {[%emt 0:00:47]} Rc4 {[%emt 0:00:02]} 31. Bd2 {[%emt 0:00:09]} Ra4 {
[%emt 0:00:05]} 1/2-1/2